bitfinex/quotes_ETHUSD_20241225
["timestamp","ask_amount","ask_price","bid_price","bid_amount"]
[1735088866630,2.86408,3491.6,3491.5,0.55]
[1735088867552,0.8332,3491.6,3490.9,0.7884]
[1735088867686,2.86494,3490.5,3490.2,11.46950553]
[1735088867884,2.865,3490.4,3490.2,2.62990553]
[1735088868104,2.865,3490.4,3490.1,1.7966585]
[1735088869247,3.69796,3490.7,3489.9,2.62990553]
[1735088869560,2.86509,3490.3,3490.0,0.55]
[1735088873447,2.86493,3490.5,3490.2,2.62990553]
[1735088873748,2.86493,3490.5,3490.3,0.55]
[1735088873901,0.8332,3490.7,3490.3,0.55]
[1735088874106,2.865,3490.4,3490.3,0.55]
[1735088874307,4.48788539,3490.7,3490.0,0.55]
[1735088874631,2.86524,3490.1,3489.6,2.62990553]
[1735088874833,2.86524,3490.1,3489.7,0.55]
[1735088875419,2.76524,3490.1,3489.7,0.55]
[1735088876025,2.86509,3490.3,3490.0,0.55]
[1735088876350,3.0,3490.5,3490.0,0.55]
[1735088876554,3.0,3490.5,3490.2,0.55]
[1735088876906,3.0,3490.7,3490.4,0.55]
[1735088877124,5.86476,3490.7,3490.4,0.55]
[1735088877329,3.0,3490.5,3490.4,0.55]
[1735088877554,5.86491,3490.5,3490.4,0.55]
[1735088877871,5.86491,3490.5,3490.2,0.55]
[1735088878069,3.0,3490.4,3490.2,0.55]
[1735088878639,0.7736,3490.5,3490.1,0.55]
[1735088878842,2.865,3490.4,3490.0,2.62990553]
[1735088879047,1.15096,3490.5,3490.0,2.62990553]
[1735088879048,2.8652,3490.2,3490.0,2.62990553]
[1735088879445,2.865,3490.4,3489.7,11.46950553]
[1735088879975,2.86536,3490.0,3489.8,0.55]
[1735088881476,2.86541,3489.9,3489.8,0.55]
[1735088881630,2.86541,3489.9,3489.4,2.62990553]
[1735088882175,2.86549,3489.8,3489.4,2.62990553]
[1735088883074,2.86549,3489.8,3489.5,0.55]
[1735088883257,2.86534,3490.0,3489.5,0.55]
[1735088883446,2.8655,3489.8,3489.5,0.55]
[1735088885376,2.86558,3489.7,3489.5,0.55]
[1735088885572,2.86565,3489.6,3489.5,0.55]
[1735088885877,2.86588,3489.4,3489.1,2.62990553]
[1735088887087,2.86588,3489.4,3489.2,0.55]
[1735088887790,2.8659,3489.3,3489.2,0.55]
[1735088888190,3.0,3489.2,3488.6,0.7628]
[1735088888418,3.0,3489.2,3488.3,3.39270553]
[1735088888564,0.7669,3489.4,3488.3,3.39270553]
[1735088888770,2.86642,3488.7,3488.3,3.39270553]
[1735088889555,0.7669,3488.9,3488.3,3.39270553]
[1735088889797,2.86649,3488.6,3488.3,3.39270553]
[1735088890293,2.86664,3488.4,3488.0,2.62990553]
[1735088890453,0.363296,3488.8,3488.0,2.62990553]
[1735088890454,2.86673,3488.3,3488.0,2.62990553]
[1735088890861,2.86649,3488.6,3488.0,2.62990553]
[1735088891060,2.86656,3488.5,3488.0,2.62990553]
[1735088891976,2.86656,3488.5,3488.1,0.55]
[1735088892188,2.86656,3488.5,3488.3,2.62990553]
[1735088892519,2.86656,3488.5,3488.4,0.55]
[1735088893994,2.86642,3488.7,3488.4,0.55]
[1735088894317,3.0,3488.6,3488.4,0.55]
[1735088894614,3.0,3489.1,3488.4,0.55]
[1735088894917,3.0,3488.8,3488.4,0.55]
[1735088895222,2.86547,3489.9,3488.9,0.55]
[1735088895516,2.86589,3489.4,3489.2,0.55]
[1735088896022,0.8146,3490.0,3489.2,0.55]
[1735088896023,2.86568,3489.6,3489.2,0.55]
[1735088897303,2.86574,3489.5,3489.2,0.55]
[1735088898097,4.081346,3490.3,3489.5,0.55]
[1735088898296,2.86543,3489.9,3489.5,0.55]
[1735088898695,4.081346,3490.3,3489.5,0.55]
[1735088898893,2.8655,3489.8,3489.5,0.55]
[1735088900025,3.0,3489.7,3489.5,0.55]
[1735088902020,1.216196,3490.3,3489.5,0.55]
[1735088902205,2.86576,3489.5,3489.2,0.55]
[1735088907128,2.86558,3489.7,3489.2,0.55]
[1735088907431,2.86566,3489.6,3489.2,0.55]
[1735088910427,2.8659,3489.3,3489.2,0.55]
[1735088910634,2.8659,3489.3,3489.1,0.55]
[1735088910954,2.8659,3489.3,3489.0,0.7526]
[1735088912135,2.8657,3489.6,3489.1,3.17990553]
[1735088913624,3.0,3489.7,3489.1,3.17990553]
[1735088914347,2.8656,3489.7,3489.1,3.17990553]
[1735088915451,2.86567,3489.6,3489.1,3.17990553]
[1735088919846,5.00068391,3490.0,3489.1,3.17990553]
[1735088920043,2.86591,3489.3,3489.1,3.17990553]
[1735088920854,3.0,3489.7,3489.1,3.17990553]
[1735088921052,2.86575,3489.5,3489.1,3.17990553]
[1735088923430,2.86565,3489.6,3489.1,3.17990553]
[1735088923746,3.0,3489.5,3489.1,3.17990553]
[1735088926270,3.0,3489.5,3489.1,4.45711608]
[1735088927273,4.20108391,3489.7,3489.3,0.55]
[1735088927860,3.0,3489.7,3489.3,0.55]
[1735088928062,4.06658391,3489.8,3489.3,0.55]
[1735088928063,4.20108391,3489.8,3489.3,0.55]
[1735088928778,4.20108391,3489.8,3489.5,2.62990553]
[1735088928958,4.20108391,3489.8,3489.6,0.55]
[1735088929135,3.0,3489.9,3489.6,0.55]
[1735088929337,2.86541,3489.9,3489.6,0.86799055]
[1735088929583,2.8655,3489.8,3489.6,0.55]
[1735088930676,4.20108391,3490.0,3489.4,0.55]
[1735088931016,3.0,3489.8,3489.4,0.55]
[1735088931133,1.20108391,3489.9,3489.4,0.55]
[1735088931334,1.20108391,3489.9,3489.6,0.55]
[1735088931534,1.20108391,3489.9,3489.6,1.88494055]
[1735088932043,4.20108391,3490.0,3489.6,1.88494055]
[1735088932298,1.20108391,3490.0,3489.6,1.88494055]
[1735088933398,2.86524,3490.1,3489.6,0.55]
[1735088934348,1.20108391,3490.3,3489.9,2.62990553]
[1735088934349,4.06619391,3490.3,3489.9,2.62990553]
[1735088934553,4.06619391,3490.3,3490.0,1.3299]
[1735088934766,2.86524,3490.1,3490.0,0.55]
[1735088937452,1.20108391,3490.2,3490.0,0.55]
[1735088938786,7.06616391,3490.3,3490.0,0.55]
[1735088940891,2.86524,3490.1,3489.7,0.7799]
[1735088941189,5.32828257,3490.3,3489.8,0.55]
[1735088941366,5.19336257,3490.3,3489.8,0.55]
[1735088942396,1.20108391,3490.2,3489.8,0.55]
[1735088944174,1.20108391,3490.3,3489.8,0.55]
[1735088944466,1.20108391,3490.3,3490.1,2.62990553]
[1735088944670,1.20108391,3490.3,3490.2,0.55]
[1735088944855,1.20108391,3490.3,3490.2,1.3104]
[1735088945361,3.00333952,3490.5,3490.2,1.3104]
[1735088945562,1.20108391,3490.5,3490.4,2.62990553]
[1735088945866,1.20108391,3490.5,3490.4,3.94030553]
[1735088946369,1.20108391,3490.5,3490.4,4.56217104]
[1735088946588,4.20108391,3491.0,3490.4,4.56217104]
[1735088946773,4.20108391,3491.0,3490.7,2.62990553]
[1735088947197,4.20108391,3491.0,3490.8,0.55]
[1735088947986,2.86442,3491.2,3490.9,1.3104]
[1735088948386,1.20108391,3491.3,3491.0,3.17990553]
[1735088949256,4.06511391,3491.6,3491.0,3.17990553]
[1735088950080,3.0,3491.5,3491.0,3.17990553]
[1735088950377,5.86414,3491.5,3491.0,3.17990553]
[1735088951868,3.0,3491.6,3491.4,0.55]
[1735088952588,2.02188391,3491.8,3491.4,0.86799055]
[1735088952917,1.20108391,3491.8,3491.7,1.3104]
[1735088953279,2.8637,3492.0,3491.7,1.3104]
[1735088953481,1.20108391,3492.1,3491.7,1.3104]
[1735088954816,2.86354,3492.2,3491.7,1.3104]
[1735088955113,2.86362,3492.1,3491.7,2.62018961]
[1735088956192,0.8208,3491.8,3491.5,0.55]
[1735088956320,2.86379,3491.9,3491.4,0.55]
[1735088956729,2.86386,3491.8,3491.4,0.55]
[1735088957103,2.86371,3492.0,3491.4,0.55]
[1735088957523,2.86379,3491.9,3491.4,0.55]
[1735088958345,2.86379,3491.9,3491.4,0.94403055]
[1735088958516,2.86379,3491.9,3491.4,0.55]
[1735088959399,3.0,3492.1,3491.7,2.62990553]
[1735088959598,3.0,3492.1,3491.8,0.55]
[1735088960130,2.86334,3492.5,3491.8,9.3896]
[1735088960303,2.86334,3492.5,3492.1,0.55]
[1735088960505,1.20108391,3492.6,3492.1,0.55]
[1735088960705,1.20108391,3492.6,3492.3,0.55]
[1735088961345,1.20108391,3492.8,3492.1,0.55]
[1735088962834,2.86331,3492.5,3492.1,0.55]
[1735088969753,3.0,3492.9,3492.3,0.55]
[1735088970057,2.86336,3492.4,3492.3,0.55]
[1735088970244,0.767,3492.8,3491.7,8.8396]
[1735088970447,2.86363,3492.1,3491.7,8.8396]
[1735088970948,2.86342,3492.4,3491.7,8.8396]
[1735088971130,5.86316,3492.7,3491.7,8.8396]
[1735088971329,2.86358,3492.2,3491.7,8.8396]
[1735088971536,2.86323,3492.6,3491.7,8.8396]
[1735088971537,2.86361,3492.1,3491.8,0.55]
[1735088971860,2.86361,3492.1,3491.7,0.55]
[1735088972832,5.86323,3492.6,3491.7,0.55]
[1735088972833,0.7718,3492.3,3491.7,0.55]
[1735088973038,2.86352,3492.2,3491.3,0.7742]
[1735088973233,2.86383,3491.9,3491.3,0.7742]
[1735088973884,3.0,3492.1,3491.8,2.62990553]
[1735088974040,3.0,3492.2,3491.8,2.62990553]
[1735088974240,3.0,3492.2,3491.6,0.7823]
[1735088974562,2.8636,3492.1,3491.6,0.7823]
[1735088974766,2.86381,3491.9,3491.6,0.7823]
[1735088974952,3.784,3492.6,3491.6,0.7823]
[1735088975147,3.0,3492.0,3491.6,0.7823]
[1735088975363,3.0,3492.0,3491.7,0.55]
[1735088976482,2.86362,3492.1,3491.7,0.55]
[1735088982906,2.86346,3492.3,3491.7,0.55]
[1735088983112,3.0,3492.4,3491.7,0.55]
[1735088983272,3.0,3492.1,3491.7,0.55]
[1735088983474,1.20108391,3492.7,3492.2,0.55]
[1735088983875,2.86326,3492.6,3492.2,0.55]
[1735088984075,1.20108391,3492.7,3492.2,0.55]
[1735088984316,3.64719,3492.6,3492.0,0.55]
[1735088984620,2.86351,3492.3,3492.0,0.55]
[1735088986292,2.8636,3492.1,3491.9,0.55]
[1735088987621,0.784,3492.0,3491.6,0.55]
[1735088988025,2.8636,3492.1,3491.6,0.55]
[1735088989029,2.8636,3492.1,3491.6,1.83018055]
[1735088989402,2.8636,3492.1,3491.8,0.55]
[1735088989791,2.8636,3492.1,3491.8,3.17990553]
[1735088989986,1.20108391,3492.4,3491.8,3.17990553]
[1735088990191,1.20108391,3492.4,3492.3,0.55]
[1735088990428,1.20108391,3492.4,3492.3,1.3428]
[1735088990612,1.20108391,3492.4,3492.3,1.74007055]
[1735088990924,1.20108391,3492.6,3492.3,1.74007055]
[1735088991299,1.20108391,3492.6,3492.5,2.62990553]
[1735088991490,1.20108391,3492.6,3492.5,3.17990553]
[1735088992804,7.06405391,3492.9,3492.6,0.55]
[1735088993504,0.8228,3492.8,3492.0,9.638]
[1735088993711,5.02388391,3492.8,3492.1,0.55]
[1735088994101,2.02388391,3492.8,3492.1,0.55]
[1735088994842,4.06437391,3492.5,3492.1,0.55]
[1735088995839,1.20108391,3492.4,3492.1,0.55]
[1735088998239,1.20108391,3492.4,3492.1,0.94783055]
[1735089000642,1.20108391,3492.4,3492.3,2.62990553]
[1735089000802,1.20108391,3492.4,3492.3,3.97830553]
[1735089001139,2.02388391,3492.5,3492.0,8.8396]
[1735089001358,2.8636,3492.2,3492.0,8.8396]
[1735089001929,2.8636,3492.2,3491.6,3.42830553]
[1735089002134,2.8636,3492.2,3491.6,4.77487332]
[1735089002359,4.06468391,3492.2,3491.6,4.77487332]
[1735089003167,1.20108391,3492.2,3491.7,0.55]
[1735089003595,1.20108391,3492.0,3491.7,0.55]
[1735089011501,1.20108391,3492.0,3491.7,0.57863814]
[1735089011696,1.20108391,3492.0,3491.9,1.382]
[1735089012261,1.20108391,3492.0,3491.9,4.01190553]
[1735089013378,1.20108391,3492.4,3491.9,4.01190553]
[1735089013995,1.20108391,3492.4,3492.1,0.55]
[1735089014604,1.20108391,3492.3,3492.1,0.55]
[1735089015290,1.20108391,3492.3,3492.2,1.83515055]
[1735089016063,1.20108391,3492.4,3492.2,1.83515055]
[1735089016367,1.20108391,3492.4,3492.3,0.55]
[1735089018412,1.20108391,3492.4,3492.1,0.55]
[1735089021573,0.7807,3492.4,3491.6,1.19777233]
[1735089021775,2.86393,3491.7,3491.6,1.19777233]
[1735089021991,3.64463,3491.7,3491.6,1.19777233]
[1735089023401,2.86434,3491.2,3490.8,3.82767786]
[1735089024878,2.86434,3491.2,3490.9,0.55]
[1735089025504,0.58676795,3491.2,3490.4,0.00765376]
[1735089025817,2.86491,3490.5,3490.4,0.00765376]
[1735089026418,0.7807,3490.6,3490.4,0.00765376]
[1735089027641,3.0,3490.9,3490.4,0.00765376]
[1735089027820,2.86461,3490.9,3490.4,0.00765376]
[1735089028021,3.0,3490.8,3490.4,0.00765376]
[1735089028243,3.0,3490.8,3490.5,2.62990553]
[1735089028385,1.20108391,3490.9,3490.4,0.00765376]
[1735089028584,0.37840395,3490.8,3490.4,0.00765376]
[1735089029279,2.86475,3490.7,3490.4,0.00765376]
[1735089029483,2.8649,3490.6,3490.4,0.00765376]
[1735089032553,2.86465,3490.9,3490.4,0.00765376]
[1735089032754,1.20108391,3491.2,3490.6,0.55]
[1735089033052,1.20108391,3491.2,3490.9,0.55]
[1735089033242,1.20108391,3491.2,3491.1,3.94330553]
[1735089034267,2.86412,3491.5,3491.1,3.94330553]
[1735089034416,2.86412,3491.5,3491.2,0.55]
[1735089036961,2.00468391,3492.0,3491.5,0.55]
[1735089038074,0.8036,3492.0,3491.5,0.55]
[1735089038353,3.0,3492.0,3491.5,0.55]
[1735089038971,2.86362,3492.1,3491.8,0.55]
[1735089039169,2.86362,3492.1,3491.5,0.55]
[1735089039374,2.86362,3492.1,3491.5,1.79138361]
[1735089040047,2.86379,3491.9,3491.5,0.55]
[1735089040256,2.86385,3491.8,3491.5,0.55]
[1735089040941,2.86403,3491.6,3491.3,8.8396]
[1735089041777,2.86413,3491.5,3491.3,8.8396]
[1735089041955,3.66728,3492.0,3491.3,8.8396]
[1735089042155,2.86394,3491.7,3491.4,0.55]
[1735089044090,2.86394,3491.7,3491.2,0.55]
[1735089045479,0.8036,3492.0,3491.2,0.55]
[1735089045480,3.0,3491.8,3491.2,0.55]
[1735089045792,3.0,3492.0,3491.2,0.55]
[1735089045993,3.0,3492.0,3491.5,2.62990553]
[1735089046296,1.20108391,3492.1,3491.6,2.64603055]
[1735089046498,1.20108391,3492.1,3491.6,1.3628]
[1735089047003,4.06471391,3492.1,3491.6,1.3628]
[1735089047162,1.20108391,3492.1,3491.6,0.55]
[1735089047361,6.80805883,3492.5,3491.4,0.8128]
[1735089047362,0.8036,3492.4,3491.5,0.55]
[1735089047593,3.8036,3492.4,3491.5,0.55]
[1735089047794,1.26701895,3492.3,3491.5,0.55]
[1735089048098,2.86394,3491.7,3491.3,0.55]
[1735089048302,2.86404,3491.6,3491.3,0.55]
[1735089048467,2.86412,3491.5,3491.2,0.55]
[1735089055329,2.86395,3491.7,3491.2,0.55]
[1735089055626,2.86402,3491.6,3491.2,0.55]
[1735089056192,2.8641,3491.5,3491.2,0.55]
[1735089056535,2.8641,3491.5,3491.0,0.55]
[1735089058727,2.86435,3491.2,3491.0,0.55]
[1735089058925,2.86435,3491.2,3490.6,2.62990553]
[1735089058926,2.86435,3491.2,3490.7,0.55]
[1735089059334,0.8036,3491.3,3490.7,0.55]
[1735089061411,2.8642,3491.4,3490.7,0.55]
[1735089063127,2.86453,3491.0,3490.7,0.55]
[1735089063333,1.07328139,3491.4,3490.6,8.8396]
[1735089063628,0.8098,3491.5,3490.6,8.8396]
[1735089063828,2.86488,3490.6,3490.2,2.62990553]
[1735089064031,2.865,3490.5,3490.1,0.813]
[1735089065007,3.67457,3490.7,3490.1,0.813]
[1735089065534,3.0,3491.0,3490.5,2.62990553]
[1735089065932,1.20108391,3490.9,3490.6,0.55]
[1735089066318,1.20108391,3490.9,3490.3,0.55]
[1735089066659,0.8098,3490.8,3490.3,0.55]
[1735089067456,2.86492,3490.5,3490.3,0.55]
[1735089067615,2.86485,3490.6,3490.3,0.55]
[1735089067822,3.8098,3490.8,3490.0,0.55]
[1735089068017,2.86475,3490.7,3490.0,0.55]
[1735089068224,2.86489,3490.6,3490.0,0.55]
[1735089069379,2.86489,3490.6,3490.2,2.62990553]
[1735089069699,2.86489,3490.6,3490.3,0.55]
[1735089071243,2.86493,3490.5,3490.0,0.55]
[1735089072044,2.86557,3489.7,3489.6,0.813]
[1735089072244,2.86565,3489.6,3489.5,0.00765376]
[1735089073907,0.7547,3489.8,3489.5,0.00765376]
[1735089074090,2.86558,3489.7,3489.5,0.00765376]
[1735089074464,2.86565,3489.6,3489.5,0.00765376]
[1735089074671,6.227685,3489.6,3489.5,0.00765376]
[1735089075327,5.86565,3489.6,3489.5,0.00765376]
[1735089079214,3.0,3489.5,3489.2,0.55]
[1735089079391,5.86575,3489.5,3489.2,0.55]
[1735089079587,2.8659,3489.3,3488.9,0.55]
[1735089079819,2.86623,3488.9,3488.8,2.62990553]
[1735089079976,2.86608,3489.1,3488.8,2.62990553]
[1735089080172,2.8662,3489.0,3488.8,2.62990553]
[1735089080415,2.86623,3488.9,3488.8,2.62990553]
[1735089080975,2.86623,3488.9,3488.8,3.17990553]
[1735089081796,2.86643,3488.7,3488.6,0.55]
[1735089081998,2.86658,3488.5,3488.2,3.39030553]
[1735089083516,2.86658,3488.5,3488.3,0.55]
[1735089091000,0.363613,3488.9,3488.3,0.55]
[1735089091001,2.86664,3488.4,3488.3,0.55]
[1735089091202,3.0,3488.3,3487.7,0.7604]
[1735089092039,2.86697,3488.0,3487.7,0.7604]
[1735089093227,2.86708,3487.9,3487.7,0.55]
[1735089093610,0.794,3488.2,3487.7,0.55]
[1735089093812,0.794,3488.2,3486.8,2.86795]
[1735089093813,0.7024294,3488.1,3487.4,0.55]
[1735089094054,2.86723,3487.7,3487.4,0.55]
[1735089094242,2.86739,3487.5,3487.3,2.62990553]
[1735089094454,2.86739,3487.5,3487.0,3.40970553]
[1735089094804,2.86747,3487.4,3487.0,3.40970553]
[1735089095714,2.86754,3487.3,3487.1,0.55]
[1735089096447,2.86754,3487.3,3486.7,3.40970553]
[1735089096448,0.369134,3487.3,3486.7,3.40970553]
[1735089096830,2.8678,3487.0,3486.7,3.40970553]
[1735089097156,2.86788,3486.9,3486.7,2.62990553]
[1735089097357,3.0,3486.8,3486.1,3.40970553]
[1735089097647,2.86812,3486.6,3486.1,3.40970553]
[1735089099958,2.86812,3486.6,3486.2,0.55]
[1735089100322,3.0,3486.8,3486.5,0.55765376]
[1735089101556,0.8238,3487.1,3486.5,0.55765376]
[1735089101855,2.86756,3487.3,3486.8,0.55]
[1735089102371,3.69119,3487.5,3487.0,2.62990553]
[1735089102518,3.69119,3487.5,3487.1,0.55]
[1735089102962,3.69103,3487.7,3487.1,0.55]
[1735089103384,3.0,3487.6,3487.1,1.3298]
[1735089106689,2.86739,3487.5,3487.1,1.3298]
[1735089107551,3.0,3487.6,3487.1,1.3298]
[1735089108491,3.0,3487.8,3487.1,1.72577055]
[1735089109699,3.0,3487.8,3487.3,2.62990553]
[1735089109840,3.0,3487.8,3487.3,3.17990553]
[1735089111053,3.7909,3488.2,3487.3,0.55]
[1735089111264,3.0,3487.6,3487.3,0.55]
[1735089111602,1.377622,3487.6,3487.3,0.55]
[1735089111905,2.86746,3487.4,3487.0,0.55]
[1735089112057,2.86739,3487.5,3487.0,0.55]
[1735089112258,2.86756,3487.3,3487.0,0.55]
[1735089112465,0.365846,3487.2,3486.7,0.55]
[1735089112682,2.86756,3487.3,3486.7,0.55]
[1735089114309,0.7909,3487.4,3486.7,3.17990553]
[1735089114916,2.86739,3487.5,3486.7,3.17990553]
[1735089115417,2.86749,3487.4,3486.7,3.17990553]
[1735089118893,2.86754,3487.3,3486.7,3.17990553]
[1735089119822,2.86768,3487.2,3486.7,0.55]
[1735089120026,2.86786,3487.0,3486.6,0.8165]
[1735089120810,3.7909,3487.2,3486.3,0.8165]
[1735089121007,2.868,3486.8,3486.3,0.8165]
[1735089122012,3.7909,3487.2,3486.4,0.55]
[1735089122185,0.6945184,3487.1,3486.4,0.55]
[1735089122387,3.0,3486.9,3486.4,0.55]
[1735089122912,3.0,3486.8,3486.4,0.55]
[1735089123513,2.86805,3486.7,3486.4,0.55]
[1735089123709,2.86805,3486.7,3485.8,8.8396]
[1735089123710,2.86829,3486.4,3485.8,12.28470553]
[1735089123908,0.8279,3486.1,3485.2,0.8152]
[1735089124095,0.8279,3486.1,3485.3,2.62990553]
[1735089124300,6.6962,3486.4,3485.6,2.62990553]
[1735089125443,0.8279,3486.4,3485.7,0.55]
[1735089125632,2.86846,3486.2,3485.7,0.55]
[1735089127548,3.0,3486.3,3485.8,0.8152]
[1735089127946,3.0,3486.3,3485.9,0.55]
[1735089128321,2.86837,3486.3,3485.9,0.55]
[1735089129432,3.0,3486.9,3485.9,0.55]
[1735089129636,3.0,3486.5,3485.9,3.17990553]
[1735089130622,2.86829,3486.4,3485.9,3.17990553]
[1735089130818,0.8279,3486.7,3485.9,0.55]
[1735089131062,2.86861,3486.0,3485.6,0.55]
[1735089132279,2.86871,3485.9,3485.6,0.55]
[1735089134675,2.86841,3486.3,3485.8,0.55]
[1735089135887,3.0,3486.6,3486.1,0.8152]
[1735089136051,3.0,3486.7,3486.2,3.17990553]
[1735089138174,3.0,3486.9,3486.2,3.17990553]
[1735089138374,1.5224184,3487.1,3486.2,3.17990553]
[1735089138613,3.0,3486.7,3486.2,3.17990553]
[1735089142114,2.86796,3486.8,3486.2,3.17990553]
[1735089142427,2.86779,3487.0,3486.2,0.55]
[1735089142591,2.8682,3486.5,3486.2,0.55]
[1735089142773,2.86831,3486.4,3486.2,0.55]
[1735089142976,3.155141,3486.4,3486.0,0.55]
[1735089143174,2.86831,3486.4,3486.0,0.55]
[1735089143724,2.86837,3486.3,3486.0,0.55]
[1735089144276,0.7948,3486.5,3486.0,0.55]
[1735089144626,2.8683,3486.4,3485.7,1.3069]
[1735089145405,2.86847,3486.2,3485.7,1.3069]
[1735089145718,2.8687,3485.9,3485.3,0.7569]
[1735089146016,0.7948,3486.5,3485.7,0.7569]
[1735089146219,1.20108391,3486.7,3486.3,2.62990553]
[1735089146741,1.20108391,3486.7,3486.1,0.7569]
[1735089146742,5.86796,3486.8,3486.1,0.7569]
[1735089146899,5.86796,3486.8,3486.2,0.55]
[1735089147620,0.666276,3486.8,3486.2,0.55]
[1735089147919,2.86815,3486.6,3486.2,0.55]
[1735089148214,3.666276,3486.8,3486.2,0.55]
[1735089148520,3.0,3486.7,3486.2,0.55]
[1735089149490,0.7948,3487.4,3486.5,0.55]
[1735089149690,1.20063084,3487.1,3487.0,0.7569]
[1735089149889,1.20063084,3487.1,3487.0,1.3069]
[1735089150991,2.86738,3487.5,3487.0,1.3069]
[1735089151582,3.0,3487.4,3487.1,0.55]
[1735089152311,1.99543084,3487.8,3487.1,0.55]
[1735089152312,3.0,3487.6,3487.1,3.57358608]
[1735089152492,1.20063084,3487.8,3487.6,0.7569]
[1735089152698,1.20063084,3487.8,3487.7,0.55]
[1735089153695,2.86681,3488.2,3487.7,0.55]
[1735089154222,3.0,3488.1,3487.7,0.55]
[1735089154424,0.7637,3487.9,3487.4,0.55]
[1735089154736,2.86754,3487.3,3487.2,8.8396]
[1735089156012,2.86754,3487.3,3487.2,9.3896]
[1735089158213,2.86754,3487.3,3487.1,0.55]
[1735089159439,2.86763,3487.2,3487.1,0.55]
[1735089159641,2.8679,3486.9,3486.8,0.55]
[1735089160061,1.050454,3487.3,3486.0,1.20002968]
[1735089160062,3.0,3487.0,3486.0,2.03182968]
[1735089160197,0.7637,3486.9,3486.0,2.03182968]
[1735089160402,2.86853,3486.1,3486.0,1.20002968]
[1735089160910,3.63208,3486.3,3485.6,2.62990553]
[1735089161325,2.86846,3486.2,3485.6,2.62990553]
[1735089161906,2.86846,3486.2,3485.7,0.55]
[1735089162847,2.86846,3486.2,3486.0,0.55]
[1735089167461,2.86853,3486.1,3485.7,0.55]
[1735089169136,2.86862,3486.0,3485.7,0.55]
[1735089170567,4.96433084,3486.5,3485.7,0.55]
[1735089170715,2.86847,3486.2,3485.7,0.55]
[1735089171924,2.86826,3486.5,3486.0,0.8042]
[1735089172106,1.20063084,3486.6,3486.3,0.55]
[1735089172309,1.20063084,3486.6,3486.5,2.62990553]
[1735089172551,1.20063084,3486.6,3486.5,3.17990553]
[1735089172908,1.20063084,3486.7,3486.6,0.55]
[1735089173972,1.20063084,3486.7,3486.5,0.55]
[1735089174112,4.06867084,3486.7,3486.5,0.55]
[1735089174343,2.86804,3486.7,3486.5,0.55]
[1735089174978,0.586804,3486.7,3486.3,0.55]
[1735089175186,2.8682,3486.5,3486.3,0.55]
[1735089175540,1.96573084,3487.1,3486.3,0.55]
[1735089175541,3.0,3486.7,3486.3,0.55]
[1735089176091,2.86841,3486.3,3486.1,0.55]
[1735089179459,2.86819,3486.6,3486.1,0.55]
[1735089179862,4.20063084,3486.8,3486.3,0.55]
[1735089180174,3.7683,3486.7,3484.9,2.62004452]
[1735089180486,3.7683,3486.7,3484.9,1.80004452]
[1735089180487,5.86927,3485.2,3484.9,1.80004452]
[1735089180694,6.43450462,3485.2,3484.9,1.80004452]
[1735089180890,0.7683,3485.4,3484.9,1.80004452]
[1735089181045,5.8692,3485.3,3484.9,1.80004452]
[1735089181241,0.7683,3485.4,3484.9,1.80004452]
[1735089181556,3.7683,3485.4,3484.9,1.80004452]
[1735089181765,3.7683,3485.4,3484.5,3.44990553]
[1735089182180,3.0,3485.4,3484.9,2.62990553]
[1735089183089,3.0,3485.4,3485.0,0.55]
[1735089185089,7.83772084,3485.8,3485.1,0.8293]
[1735089185421,1.20063084,3485.8,3485.7,3.17990553]
[1735089185636,1.80094626,3485.9,3485.8,0.55]
[1735089185980,1.80094626,3485.9,3485.8,0.95092055]
[1735089186981,1.19896266,3486.6,3485.8,0.95092055]
[1735089187182,1.19896266,3486.6,3486.0,2.62990553]
[1735089187486,1.19896266,3486.6,3486.1,0.55]
[1735089188416,3.0,3486.8,3486.1,0.55]
[1735089188617,0.969442,3486.7,3486.1,0.55]
[1735089190235,3.969442,3486.7,3486.1,0.55]
[1735089193159,0.969442,3486.7,3486.4,2.62990553]
[1735089193364,1.19896266,3487.1,3486.5,0.55]
[1735089193516,3.0,3486.0,3484.9,10.03962968]
[1735089193714,3.666507,3486.0,3485.0,2.62990553]
[1735089194144,2.86895,3485.6,3485.0,2.62990553]
[1735089195035,2.86895,3485.6,3485.1,0.55]
[1735089200988,2.86879,3485.8,3485.1,0.55]
[1735089202078,2.86879,3485.8,3485.3,0.55]
[1735089202279,3.92907297,3485.8,3485.3,0.55]
[1735089202652,1.19896266,3486.0,3485.4,2.62990553]
[1735089202986,1.19896266,3486.0,3485.5,0.55]
[1735089203867,1.19896266,3486.0,3485.6,0.7743]
[1735089204066,1.19896266,3486.0,3485.7,0.55]
[1735089204874,2.86837,3486.3,3485.7,0.55]
[1735089205074,4.20883088,3486.2,3485.7,0.55]
[1735089206011,2.86837,3486.3,3485.7,0.55]
[1735089206363,4.06733266,3486.3,3485.7,0.55]
[1735089207860,2.86837,3486.3,3485.7,0.55]
[1735089211673,4.06733266,3486.3,3485.7,0.55]
[1735089213162,2.86837,3486.3,3485.7,0.55]
[1735089213307,0.66853789,3486.2,3485.7,0.55]
[1735089214208,3.53700789,3486.2,3485.7,0.55]
[1735089215855,4.73597055,3486.2,3485.7,0.55]